[Event "Betsys MČR v online bleskovém šachu 2021"]
[Site "Chess.com"]
[Date "2021.04.17"]
[Round "10"]
[White "BetsysBetting"]
[Black "Petroniuss"]
[Result "0-1"]
[WhiteElo "1998"]
[BlackElo "2249"]
[TimeControl "180+1"]
[EndTime "10:40:48 PDT"]
[Termination "Uživatel Petroniuss zvítězil matem"]

1. e4 {[%clk 0:02:57.4]} 1... c5 {[%clk 0:02:57.9]} 2. Nf3 {[%clk 0:02:57.3]}
2... a6 {[%clk 0:02:57.3]} 3. c4 {[%clk 0:02:56.1]} 3... e6 {[%clk 0:02:54.6]}
4. Nc3 {[%clk 0:02:54.5]} 4... Nc6 {[%clk 0:02:51.2]} 5. d4 {[%clk 0:02:50.8]}
5... cxd4 {[%clk 0:02:51.1]} 6. Nxd4 {[%clk 0:02:51]} 6... Nf6 {[%clk 0:02:50]}
7. Be3 {[%clk 0:02:47.9]} 7... Bb4 {[%clk 0:02:49.1]} 8. f3 {[%clk 0:02:46.9]}
8... d5 {[%clk 0:02:47.8]} 9. Nxc6 {[%clk 0:02:22.5]} 9... bxc6 {[%clk
0:02:46.4]} 10. Qa4 {[%clk 0:02:08]} 10... Bxc3+ {[%clk 0:02:39.6]} 11. bxc3
{[%clk 0:02:08.2]} 11... Bd7 {[%clk 0:02:39.2]} 12. c5 {[%clk 0:02:01.9]} 12...
O-O {[%clk 0:02:27.8]} 13. Bf4 {[%clk 0:01:56]} 13... e5 {[%clk 0:02:02.6]} 14.
Bg5 {[%clk 0:01:26.7]} 14... dxe4 {[%clk 0:01:55.3]} 15. fxe4 {[%clk 0:01:25.8]}
15... h6 {[%clk 0:01:54.9]} 16. Bh4 {[%clk 0:01:24.4]} 16... g5 {[%clk
0:01:44.6]} 17. Bg3 {[%clk 0:01:23.9]} 17... Nh5 {[%clk 0:01:35.4]} 18. Be2
{[%clk 0:01:11.5]} 18... Nf4 {[%clk 0:01:34.7]} 19. Rd1 {[%clk 0:00:38.8]} 19...
Qe7 {[%clk 0:01:03.1]} 20. Bxf4 {[%clk 0:00:27.8]} 20... exf4 {[%clk 0:01:02.5]}
21. O-O {[%clk 0:00:24.2]} 21... Qxc5+ {[%clk 0:01:02]} 22. Kh1 {[%clk
0:00:21.1]} 22... Be6 {[%clk 0:01:01.5]} 23. c4 {[%clk 0:00:15.6]} 23... a5
{[%clk 0:00:53.7]} 24. g3 {[%clk 0:00:12.8]} 24... Qe3 {[%clk 0:00:44.7]} 25.
Bf3 {[%clk 0:00:10.1]} 25... g4 {[%clk 0:00:44.5]} 26. Rde1 {[%clk 0:00:08.5]}
26... Qd4 {[%clk 0:00:29.4]} 27. Bd1 {[%clk 0:00:06]} 27... f3 {[%clk
0:00:20.6]} 28. Bb3 {[%clk 0:00:06.1]} 28... Rfd8 {[%clk 0:00:14.6]} 29. Qa3
{[%clk 0:00:06.5]} 29... a4 {[%clk 0:00:12.8]} 30. Bxa4 {[%clk 0:00:04.4]} 30...
Qxc4 {[%clk 0:00:12.7]} 31. Qe7 {[%clk 0:00:03.8]} 31... Qxa4 {[%clk 0:00:08.7]}
32. Qf6 {[%clk 0:00:04.1]} 32... Qd4 {[%clk 0:00:08.6]} 33. e5 {[%clk
0:00:04.2]} 33... Qd2 {[%clk 0:00:06.2]} 34. Qh4 {[%clk 0:00:02.5]} 34... Qg2#
{[%clk 0:00:06.1]} 0-1

[Event "Betsys MČR v online bleskovém šachu 2021"]
[Site "Chess.com"]
[Date "2021.04.17"]
[Round "10"]
[White "LiborRojar"]
[Black "Adam20032007"]
[Result "1-0"]
[WhiteElo "2074"]
[BlackElo "1800"]
[TimeControl "180+1"]
[EndTime "10:40:48 PDT"]
[Termination "Uživatel LiborRojar zvítězil na čas"]

1. e4 {[%clk 0:03:00.9]} 1... e6 {[%clk 0:02:56.4]} 2. d4 {[%clk 0:03:00.4]}
2... d5 {[%clk 0:02:56.1]} 3. e5 {[%clk 0:03:00.7]} 3... c5 {[%clk 0:02:56.1]}
4. Qg4 {[%clk 0:03:00.4]} 4... cxd4 {[%clk 0:02:51.8]} 5. Nf3 {[%clk 0:03:00.5]}
5... Nc6 {[%clk 0:02:49]} 6. Bd3 {[%clk 0:03:00.3]} 6... Nge7 {[%clk 0:02:39]}
7. O-O {[%clk 0:03:00.1]} 7... g6 {[%clk 0:02:27.3]} 8. Nbd2 {[%clk 0:02:56.9]}
8... Bg7 {[%clk 0:02:27]} 9. Re1 {[%clk 0:02:57]} 9... Bd7 {[%clk 0:02:23.2]}
10. Nb3 {[%clk 0:02:56.8]} 10... Qb6 {[%clk 0:02:16.1]} 11. Nbxd4 {[%clk
0:02:51.6]} 11... h5 {[%clk 0:02:10.4]} 12. Qf4 {[%clk 0:02:31.5]} 12... Rf8
{[%clk 0:01:28.7]} 13. Nb5 {[%clk 0:02:15.2]} 13... O-O-O {[%clk 0:01:19.1]} 14.
Nd6+ {[%clk 0:01:55.5]} 14... Kb8 {[%clk 0:01:19.3]} 15. Be3 {[%clk 0:01:47.8]}
15... Qc7 {[%clk 0:01:14.7]} 16. Nb5 {[%clk 0:01:36.6]} 16... Qa5 {[%clk
0:01:04.1]} 17. c3 {[%clk 0:01:29.9]} 17... a6 {[%clk 0:00:51.4]} 18. b4 {[%clk
0:01:18.8]} 18... Qa4 {[%clk 0:00:32.3]} 19. Nd6 {[%clk 0:01:12.2]} 19... Nc8
{[%clk 0:00:28]} 20. Nxf7 {[%clk 0:01:06.1]} 20... Be8 {[%clk 0:00:25.8]} 21.
Bxg6 {[%clk 0:01:04.9]} 21... Rd7 {[%clk 0:00:24.2]} 22. Bc5 {[%clk 0:00:58.7]}
22... Rfxf7 {[%clk 0:00:18.9]} 23. Bxf7 {[%clk 0:00:57.1]} 23... Rxf7 {[%clk
0:00:19]} 24. Qg5 {[%clk 0:00:54.6]} 24... b6 {[%clk 0:00:16.9]} 25. Bd4 {[%clk
0:00:52]} 25... Qb5 {[%clk 0:00:15.2]} 26. Qxh5 {[%clk 0:00:49.3]} 26... Rxf3
{[%clk 0:00:11.8]} 27. Qxf3 {[%clk 0:00:47.7]} 27... Nxd4 {[%clk 0:00:09.8]} 28.
cxd4 {[%clk 0:00:47.2]} 28... Qxb4 {[%clk 0:00:10.2]} 29. Red1 {[%clk
0:00:43.7]} 29... Ne7 {[%clk 0:00:09.5]} 30. Rab1 {[%clk 0:00:41.7]} 30... Qc4
{[%clk 0:00:07.3]} 31. Qe3 {[%clk 0:00:40.2]} 31... Ka7 {[%clk 0:00:07.3]} 32.
Rdc1 {[%clk 0:00:40]} 32... Qa4 {[%clk 0:00:06.9]} 33. Rc7+ {[%clk 0:00:39.8]}
33... Kb8 {[%clk 0:00:05.2]} 34. Rxe7 {[%clk 0:00:39.8]} 34... Bf8 {[%clk
0:00:04]} 35. Rh7 {[%clk 0:00:38.1]} 35... Bg6 {[%clk 0:00:04.1]} 36. Rh8 {[%clk
0:00:36.6]} 36... Bxb1 {[%clk 0:00:05]} 37. Rxf8+ {[%clk 0:00:35.6]} 37... Kb7
{[%clk 0:00:05.5]} 38. Qf3 {[%clk 0:00:33.2]} 38... Qc4 {[%clk 0:00:03.7]} 39.
h4 {[%clk 0:00:34.1]} 39... Qc1+ {[%clk 0:00:03.5]} 40. Kh2 {[%clk 0:00:35]}
40... Qc2 {[%clk 0:00:03.3]} 41. Kg3 {[%clk 0:00:35.9]} 41... Kc6 {[%clk
0:00:03.6]} 42. h5 {[%clk 0:00:36.7]} 42... Qh7 {[%clk 0:00:03.1]} 43. h6 {[%clk
0:00:37.6]} 43... Qxh6 {[%clk 0:00:03.4]} 44. Rf6 {[%clk 0:00:38.4]} 44... Qg7+
{[%clk 0:00:03.6]} 45. Qg4 {[%clk 0:00:37.8]} 45... Qh7 {[%clk 0:00:03.3]} 46.
Kf3 {[%clk 0:00:37.7]} 46... Be4+ {[%clk 0:00:02.6]} 47. Kg3 {[%clk 0:00:37.8]}
1-0

[Event "Betsys MČR v online bleskovém šachu 2021"]
[Site "Chess.com"]
[Date "2021.04.17"]
[Round "10"]
[White "DavidekIII"]
[Black "YawningBagel"]
[Result "1/2-1/2"]
[WhiteElo "2201"]
[BlackElo "1987"]
[TimeControl "180+1"]
[EndTime "10:40:49 PDT"]
[Termination "Remíza dohodou"]

1. d4 {[%clk 0:03:00.9]} 1... Nf6 {[%clk 0:02:57.8]} 2. c4 {[%clk 0:03:00.4]}
2... e6 {[%clk 0:02:58.2]} 3. Nc3 {[%clk 0:02:59.4]} 3... d5 {[%clk 0:02:58.5]}
4. cxd5 {[%clk 0:02:59.1]} 4... exd5 {[%clk 0:02:58.9]} 5. Bg5 {[%clk
0:02:58.6]} 5... Be7 {[%clk 0:02:58.8]} 6. e3 {[%clk 0:02:58.2]} 6... O-O {[%clk
0:02:59]} 7. Bd3 {[%clk 0:02:56.3]} 7... Nbd7 {[%clk 0:02:58.4]} 8. Qc2 {[%clk
0:02:53.7]} 8... c6 {[%clk 0:02:58]} 9. Nge2 {[%clk 0:02:48.7]} 9... Re8 {[%clk
0:02:57]} 10. O-O {[%clk 0:02:48.3]} 10... Nf8 {[%clk 0:02:52.7]} 11. Rab1
{[%clk 0:02:45.9]} 11... Bg4 {[%clk 0:02:44]} 12. Ng3 {[%clk 0:02:36.4]} 12...
Bd7 {[%clk 0:01:53.8]} 13. b4 {[%clk 0:02:27.3]} 13... a6 {[%clk 0:01:52.2]} 14.
a4 {[%clk 0:02:20.7]} 14... Ne6 {[%clk 0:00:57.2]} 15. Bxf6 {[%clk 0:02:17.7]}
15... Bxf6 {[%clk 0:00:58.1]} 16. Bxh7+ {[%clk 0:02:16.9]} 16... Kh8 {[%clk
0:00:58.4]} 17. Bd3 {[%clk 0:02:17.4]} 17... b5 {[%clk 0:00:54.1]} 18. a5 {[%clk
0:02:08.1]} 18... Qb8 {[%clk 0:00:38.5]} 19. Qd1 {[%clk 0:01:21.7]} 19... g6
{[%clk 0:00:34.3]} 20. f4 {[%clk 0:00:53.7]} 20... Nxd4 {[%clk 0:00:24.3]} 21.
exd4 {[%clk 0:00:36.4]} 21... Bxd4+ {[%clk 0:00:22]} 22. Kh1 {[%clk 0:00:37]}
22... Bxc3 {[%clk 0:00:21.7]} 23. f5 {[%clk 0:00:37.6]} 23... Qd6 {[%clk
0:00:18.2]} 24. fxg6 {[%clk 0:00:35]} 24... fxg6 {[%clk 0:00:16.5]} 25. Qc2
{[%clk 0:00:34.9]} 25... Be5 {[%clk 0:00:13]} 26. Bxg6 {[%clk 0:00:33]} 26...
Rg8 {[%clk 0:00:09.5]} 27. Bf5 {[%clk 0:00:23.5]} 27... Bxg3 {[%clk 0:00:09]}
28. Bxd7 {[%clk 0:00:21.3]} 28... Qxd7 {[%clk 0:00:07.5]} 29. hxg3 {[%clk
0:00:18.9]} 29... Rxg3 {[%clk 0:00:06.8]} 30. Rf4 {[%clk 0:00:18.4]} 30... Qh7+
{[%clk 0:00:05.3]} 31. Qxh7+ {[%clk 0:00:18.4]} 31... Kxh7 {[%clk 0:00:06.2]}
32. Rc1 {[%clk 0:00:18.9]} 32... Rg6 {[%clk 0:00:05.4]} 33. Re1 {[%clk
0:00:17.5]} 33... Ra7 {[%clk 0:00:04.9]} 34. Re8 {[%clk 0:00:16.5]} 34... Kh6
{[%clk 0:00:05]} 1/2-1/2

[Event "Betsys MČR v online bleskovém šachu 2021"]
[Site "Chess.com"]
[Date "2021.04.17"]
[Round "10"]
[White "Soural_J"]
[Black "tudlenudle"]
[Result "1-0"]
[WhiteElo "2201"]
[BlackElo "1950"]
[TimeControl "180+1"]
[EndTime "10:40:51 PDT"]
[Termination "Uživatel Soural_J zvítězil na čas"]

1. Nf3 {[%clk 0:03:00.9]} 1... Nf6 {[%clk 0:02:58.3]} 2. c4 {[%clk 0:03:00.9]}
2... e6 {[%clk 0:02:58.1]} 3. g3 {[%clk 0:03:00.5]} 3... d5 {[%clk 0:02:57.1]}
4. Bg2 {[%clk 0:02:59.3]} 4... Be7 {[%clk 0:02:56.7]} 5. O-O {[%clk 0:02:58.7]}
5... O-O {[%clk 0:02:57.3]} 6. d4 {[%clk 0:02:58.8]} 6... dxc4 {[%clk
0:02:53.6]} 7. Ne5 {[%clk 0:02:58.6]} 7... Nc6 {[%clk 0:02:53.2]} 8. Bxc6 {[%clk
0:02:59]} 8... bxc6 {[%clk 0:02:54.1]} 9. Nxc6 {[%clk 0:02:59.2]} 9... Qe8
{[%clk 0:02:54.4]} 10. Nxe7+ {[%clk 0:02:59.7]} 10... Qxe7 {[%clk 0:02:55.3]}
11. Na3 {[%clk 0:02:59.9]} 11... e5 {[%clk 0:02:37.5]} 12. dxe5 {[%clk
0:02:50.4]} 12... Qxe5 {[%clk 0:02:36.1]} 13. Nxc4 {[%clk 0:02:50.5]} 13... Qh5
{[%clk 0:02:34.8]} 14. Ne3 {[%clk 0:02:28.8]} 14... Bb7 {[%clk 0:02:28.6]} 15.
f3 {[%clk 0:02:22]} 15... Rfe8 {[%clk 0:02:16.9]} 16. Rf2 {[%clk 0:02:15.2]}
16... Rad8 {[%clk 0:02:09.8]} 17. Qc2 {[%clk 0:02:14.6]} 17... Nd5 {[%clk
0:01:56.8]} 18. Nxd5 {[%clk 0:02:09]} 18... Rxd5 {[%clk 0:01:48.9]} 19. Bf4
{[%clk 0:01:38.6]} 19... Rc5 {[%clk 0:01:02.6]} 20. Qa4 {[%clk 0:01:37.3]} 20...
Bc6 {[%clk 0:00:42.6]} 21. Qb3 {[%clk 0:01:11.8]} 21... Bd5 {[%clk 0:00:27.9]}
22. Qd3 {[%clk 0:01:04.5]} 22... Bc4 {[%clk 0:00:22.3]} 23. Qd4 {[%clk
0:01:00.6]} 23... Qd5 {[%clk 0:00:21]} 24. Qxd5 {[%clk 0:00:57.8]} 24... Rxd5
{[%clk 0:00:21.9]} 25. e4 {[%clk 0:00:55.3]} 25... Rc5 {[%clk 0:00:19.7]} 26.
Rc1 {[%clk 0:00:52.4]} 26... g5 {[%clk 0:00:13]} 27. Be3 {[%clk 0:00:50.9]}
27... Rc6 {[%clk 0:00:12.8]} 28. Rfc2 {[%clk 0:00:50.2]} 28... Ra6 {[%clk
0:00:09.3]} 29. Rxc4 {[%clk 0:00:48.8]} 29... Rxa2 {[%clk 0:00:10.2]} 30. R1c2
{[%clk 0:00:47.5]} 30... h6 {[%clk 0:00:09.4]} 31. Rxc7 {[%clk 0:00:46.3]} 31...
a5 {[%clk 0:00:09.6]} 32. Ra7 {[%clk 0:00:42.6]} 32... Rd8 {[%clk 0:00:06.2]}
33. Rd2 {[%clk 0:00:32.6]} 33... Rc8 {[%clk 0:00:04.5]} 34. Kf2 {[%clk 0:00:25]}
34... Kg7 {[%clk 0:00:03.4]} 35. Bd4+ {[%clk 0:00:22.1]} 35... Kg6 {[%clk
0:00:03]} 36. f4 {[%clk 0:00:21.6]} 36... gxf4 {[%clk 0:00:02.6]} 37. gxf4
{[%clk 0:00:21.4]} 37... a4 {[%clk 0:00:03]} 38. Kf3 {[%clk 0:00:20.6]} 1-0

[Event "Betsys MČR v online bleskovém šachu 2021"]
[Site "Chess.com"]
[Date "2021.04.17"]
[Round "10"]
[White "SajdlJosef"]
[Black "FrantisekP"]
[Result "0-1"]
[WhiteElo "1812"]
[BlackElo "1647"]
[TimeControl "180+1"]
[EndTime "10:40:51 PDT"]
[Termination "Uživatel FrantisekP zvítězil na čas"]

1. d4 {[%clk 0:03:00.9]} 1... Nf6 {[%clk 0:02:59.4]} 2. Nf3 {[%clk 0:03:00]}
2... g6 {[%clk 0:02:59.9]} 3. Bf4 {[%clk 0:02:59.3]} 3... d6 {[%clk 0:02:58.7]}
4. e3 {[%clk 0:02:58.7]} 4... Bg7 {[%clk 0:02:56.6]} 5. Nbd2 {[%clk 0:02:56.8]}
5... O-O {[%clk 0:02:56.1]} 6. Bc4 {[%clk 0:02:54]} 6... Nbd7 {[%clk 0:02:45.6]}
7. O-O {[%clk 0:02:50.2]} 7... Nh5 {[%clk 0:02:45.7]} 8. Bg5 {[%clk 0:02:46.8]}
8... h6 {[%clk 0:02:41.1]} 9. Bh4 {[%clk 0:02:44.3]} 9... g5 {[%clk 0:02:41.1]}
10. Ne1 {[%clk 0:02:38]} 10... gxh4 {[%clk 0:02:35.4]} 11. Qxh5 {[%clk
0:02:35.1]} 11... h3 {[%clk 0:02:23.4]} 12. g3 {[%clk 0:02:18.2]} 12... Nf6
{[%clk 0:02:21.5]} 13. Qh4 {[%clk 0:02:12.6]} 13... a6 {[%clk 0:02:16.4]} 14. a4
{[%clk 0:02:11]} 14... Qd7 {[%clk 0:02:05.1]} 15. Ne4 {[%clk 0:01:35.8]} 15...
Qg4 {[%clk 0:01:58.4]} 16. Nxf6+ {[%clk 0:01:32.2]} 16... Bxf6 {[%clk
0:01:45.9]} 17. Qxg4+ {[%clk 0:01:21.7]} 17... Bxg4 {[%clk 0:01:44.8]} 18. f3
{[%clk 0:01:21.2]} 18... Bd7 {[%clk 0:01:42.3]} 19. c3 {[%clk 0:01:20.4]} 19...
b5 {[%clk 0:01:38.4]} 20. Bb3 {[%clk 0:01:12.4]} 20... e5 {[%clk 0:01:27.8]} 21.
Nd3 {[%clk 0:01:07]} 21... exd4 {[%clk 0:01:21.8]} 22. exd4 {[%clk 0:01:04.5]}
22... Bf5 {[%clk 0:01:21.6]} 23. Nf4 {[%clk 0:00:57.5]} 23... c6 {[%clk
0:00:57.2]} 24. Rfe1 {[%clk 0:00:54.2]} 24... Rfe8 {[%clk 0:00:41.5]} 25. Kf2
{[%clk 0:00:50.7]} 25... Bg5 {[%clk 0:00:34]} 26. Nh5 {[%clk 0:00:36]} 26... Bg6
{[%clk 0:00:33.7]} 27. Nf4 {[%clk 0:00:29.6]} 27... Bxf4 {[%clk 0:00:33.6]} 28.
gxf4 {[%clk 0:00:28.8]} 28... Kf8 {[%clk 0:00:26.9]} 29. axb5 {[%clk 0:00:19.7]}
29... axb5 {[%clk 0:00:26.4]} 30. Rxa8 {[%clk 0:00:12.1]} 30... Rxa8 {[%clk
0:00:27.3]} 31. Re2 {[%clk 0:00:10]} 31... Ra1 {[%clk 0:00:26.1]} 32. Bc2 {[%clk
0:00:06.9]} 32... Rh1 {[%clk 0:00:22.5]} 33. Kg3 {[%clk 0:00:05.1]} 33... Rg1+
{[%clk 0:00:15.5]} 34. Kxh3 {[%clk 0:00:04]} 34... Bxc2 {[%clk 0:00:14.5]} 35.
Rxc2 {[%clk 0:00:02.6]} 35... Rf1 {[%clk 0:00:14]} 36. Kg2 {[%clk 0:00:01.2]}
36... Rb1 {[%clk 0:00:11.8]} 0-1

[Event "Betsys MČR v online bleskovém šachu 2021"]
[Site "Chess.com"]
[Date "2021.04.17"]
[Round "10"]
[White "Molefancier"]
[Black "Fafin1"]
[Result "0-1"]
[WhiteElo "1072"]
[BlackElo "1392"]
[TimeControl "180+1"]
[EndTime "10:40:51 PDT"]
[Termination "Uživatel Fafin1 zvítězil na čas"]

1. e4 {[%clk 0:03:00.9]} 1... e5 {[%clk 0:02:58.9]} 2. Nf3 {[%clk 0:03:00.4]}
2... d6 {[%clk 0:02:57.3]} 3. c3 {[%clk 0:02:57.4]} 3... Bg4 {[%clk 0:02:54.8]}
4. Be2 {[%clk 0:02:55.6]} 4... Nf6 {[%clk 0:02:54.1]} 5. d4 {[%clk 0:02:53.1]}
5... exd4 {[%clk 0:02:49.9]} 6. cxd4 {[%clk 0:02:49.8]} 6... Nbd7 {[%clk
0:02:44.7]} 7. Nc3 {[%clk 0:02:47.9]} 7... h6 {[%clk 0:02:42.4]} 8. O-O {[%clk
0:02:44.5]} 8... Be7 {[%clk 0:02:40.3]} 9. h3 {[%clk 0:02:39.4]} 9... Bh5 {[%clk
0:02:38.6]} 10. Nh4 {[%clk 0:02:37.2]} 10... Bxe2 {[%clk 0:02:34.4]} 11. Qxe2
{[%clk 0:02:36.7]} 11... O-O {[%clk 0:02:32.2]} 12. Nf5 {[%clk 0:02:35.2]} 12...
Re8 {[%clk 0:02:26.7]} 13. Nd5 {[%clk 0:02:14]} 13... Nxd5 {[%clk 0:02:25.2]}
14. exd5 {[%clk 0:02:13.5]} 14... Bf6 {[%clk 0:02:21.3]} 15. Bxh6 {[%clk
0:02:09.6]} 15... Rxe2 {[%clk 0:02:18.1]} 16. Be3 {[%clk 0:01:52.5]} 16... Rxb2
{[%clk 0:02:15]} 17. Rae1 {[%clk 0:01:50.3]} 17... Rxa2 {[%clk 0:02:09.9]} 18.
Bc1 {[%clk 0:01:45.2]} 18... g6 {[%clk 0:02:07.6]} 19. Nh6+ {[%clk 0:01:42.1]}
19... Kh7 {[%clk 0:02:04.8]} 20. Re4 {[%clk 0:01:27.8]} 20... Bg7 {[%clk
0:01:47.2]} 21. Nxf7 {[%clk 0:01:25.8]} 21... Qf6 {[%clk 0:01:42.3]} 22. Ng5+
{[%clk 0:01:18.4]} 22... Kg8 {[%clk 0:01:38.9]} 23. Rh4 {[%clk 0:01:13.2]} 23...
Re8 {[%clk 0:01:29.7]} 24. Nh7 {[%clk 0:01:06]} 24... Qf5 {[%clk 0:01:18.6]} 25.
Ng5 {[%clk 0:01:02.4]} 25... Qxd5 {[%clk 0:01:11.4]} 26. Rd1 {[%clk 0:00:53.4]}
26... Bf6 {[%clk 0:01:07.7]} 27. Rg4 {[%clk 0:00:35.6]} 27... Bxg5 {[%clk
0:01:05.9]} 28. Rxg5 {[%clk 0:00:34.7]} 28... Qf7 {[%clk 0:00:55.1]} 29. Be3
{[%clk 0:00:21.3]} 29... Kg7 {[%clk 0:00:46.1]} 30. Rf1 {[%clk 0:00:20.4]} 30...
Nf6 {[%clk 0:00:41.2]} 31. h4 {[%clk 0:00:18.8]} 31... Ne4 {[%clk 0:00:40.1]}
32. Rg4 {[%clk 0:00:13.2]} 32... Qf5 {[%clk 0:00:37.2]} 33. Rf4 {[%clk
0:00:07.9]} 33... Qd5 {[%clk 0:00:32.5]} 34. h5 {[%clk 0:00:07.8]} 34... gxh5
{[%clk 0:00:29.7]} 35. Rh4 {[%clk 0:00:05.4]} 35... Kg6 {[%clk 0:00:28.2]} 36.
Rh3 {[%clk 0:00:03.7]} 36... Rf8 {[%clk 0:00:25.8]} 37. f3 {[%clk 0:00:02.6]}
37... Ng5 {[%clk 0:00:21.8]} 38. Bxg5 {[%clk 0:00:01.3]} 38... Kxg5 {[%clk
0:00:20.7]} 0-1

[Event "Betsys MČR v online bleskovém šachu 2021"]
[Site "Chess.com"]
[Date "2021.04.17"]
[Round "10"]
[White "Gicko13"]
[Black "OlifantCZ"]
[Result "1-0"]
[WhiteElo "2139"]
[BlackElo "2278"]
[TimeControl "180+1"]
[EndTime "10:40:53 PDT"]
[Termination "Uživatel Gicko13 zvítězil po vzdání soupeře"]

1. e4 {[%clk 0:03:00.9]} 1... e6 {[%clk 0:02:59.9]} 2. d4 {[%clk 0:02:57.4]}
2... d5 {[%clk 0:03:00.3]} 3. e5 {[%clk 0:02:58.1]} 3... c5 {[%clk 0:03:00.2]}
4. c3 {[%clk 0:02:58.6]} 4... Nc6 {[%clk 0:02:59.6]} 5. Nf3 {[%clk 0:02:59.2]}
5... Bd7 {[%clk 0:02:59.3]} 6. a3 {[%clk 0:02:59.7]} 6... f6 {[%clk 0:02:58.6]}
7. Bd3 {[%clk 0:02:56.3]} 7... c4 {[%clk 0:02:57.6]} 8. Bc2 {[%clk 0:02:54.5]}
8... Qc7 {[%clk 0:02:57.8]} 9. Qe2 {[%clk 0:02:46.1]} 9... O-O-O {[%clk
0:02:56.4]} 10. Nbd2 {[%clk 0:02:32.5]} 10... fxe5 {[%clk 0:02:54.2]} 11. Nxe5
{[%clk 0:02:30.7]} 11... Nxe5 {[%clk 0:02:53.6]} 12. dxe5 {[%clk 0:02:30.2]}
12... Ne7 {[%clk 0:02:51.1]} 13. Nf3 {[%clk 0:02:22.6]} 13... Nc6 {[%clk
0:02:50.4]} 14. O-O {[%clk 0:02:13.1]} 14... Be7 {[%clk 0:02:50]} 15. Re1 {[%clk
0:02:11.5]} 15... g5 {[%clk 0:02:48.9]} 16. Bxg5 {[%clk 0:02:07.2]} 16... Rdg8
{[%clk 0:02:38]} 17. Bxe7 {[%clk 0:02:02]} 17... Nxe7 {[%clk 0:02:27.5]} 18. Nd4
{[%clk 0:02:01.9]} 18... Nc6 {[%clk 0:02:20.7]} 19. Rad1 {[%clk 0:01:46.9]}
19... Nxd4 {[%clk 0:02:15.2]} 20. Rxd4 {[%clk 0:01:45.3]} 20... Qd8 {[%clk
0:02:15.3]} 21. Qe3 {[%clk 0:01:40]} 21... h5 {[%clk 0:02:06.4]} 22. b3 {[%clk
0:01:31.4]} 22... cxb3 {[%clk 0:02:00.2]} 23. Bxb3 {[%clk 0:01:32.3]} 23... Qf8
{[%clk 0:01:48.3]} 24. c4 {[%clk 0:01:25.8]} 24... Qg7 {[%clk 0:01:48.1]} 25. g3
{[%clk 0:01:17.6]} 25... h4 {[%clk 0:01:14.8]} 26. cxd5 {[%clk 0:01:07.7]} 26...
hxg3 {[%clk 0:01:15]} 27. fxg3 {[%clk 0:01:07.2]} 27... Qh7 {[%clk 0:00:52]} 28.
Re2 {[%clk 0:00:56.3]} 28... Kb8 {[%clk 0:00:37.6]} 29. Bc2 {[%clk 0:00:42.6]}
29... Qe7 {[%clk 0:00:17.7]} 30. d6 {[%clk 0:00:38.7]} 30... Qd8 {[%clk
0:00:16.8]} 31. Be4 {[%clk 0:00:36.3]} 31... Rh5 {[%clk 0:00:12.7]} 32. Bf3
{[%clk 0:00:30.2]} 32... Rhg5 {[%clk 0:00:11.4]} 33. Rb4 {[%clk 0:00:22.7]}
33... b6 {[%clk 0:00:11.2]} 34. Qe4 {[%clk 0:00:18.6]} 34... Rxg3+ {[%clk
0:00:04.7]} 35. hxg3 {[%clk 0:00:18.8]} 35... Rxg3+ {[%clk 0:00:04.7]} 36. Rg2
{[%clk 0:00:16.4]} 36... Rxf3 {[%clk 0:00:03.3]} 37. Qxf3 {[%clk 0:00:17]} 37...
Qe8 {[%clk 0:00:01.8]} 38. Rf4 {[%clk 0:00:16.3]} 38... Bc6 {[%clk 0:00:01.4]}
39. Rf8 {[%clk 0:00:16.1]} 1-0

[Event "Betsys MČR v online bleskovém šachu 2021"]
[Site "Chess.com"]
[Date "2021.04.17"]
[Round "10"]
[White "Nevimjakhrat"]
[Black "Alesbar"]
[Result "0-1"]
[WhiteElo "1437"]
[BlackElo "1615"]
[TimeControl "180+1"]
[EndTime "10:40:54 PDT"]
[Termination "Uživatel Alesbar zvítězil na čas"]

1. c4 {[%clk 0:02:00.7]} 1... Nf6 {[%clk 0:02:58.6]} 2. Nc3 {[%clk 0:02:00.7]}
2... g6 {[%clk 0:02:58.1]} 3. g3 {[%clk 0:02:01.3]} 3... Bg7 {[%clk 0:02:57.5]}
4. Bg2 {[%clk 0:02:01.8]} 4... c6 {[%clk 0:02:57.3]} 5. e4 {[%clk 0:02:01.4]}
5... e5 {[%clk 0:02:55.7]} 6. Nge2 {[%clk 0:02:00.7]} 6... O-O {[%clk
0:02:55.2]} 7. O-O {[%clk 0:02:00.6]} 7... d6 {[%clk 0:02:54]} 8. h3 {[%clk
0:01:58]} 8... Be6 {[%clk 0:02:50.6]} 9. d3 {[%clk 0:01:58.4]} 9... Qd7 {[%clk
0:02:49]} 10. Kh2 {[%clk 0:01:58.9]} 10... a6 {[%clk 0:02:43.6]} 11. a4 {[%clk
0:01:57.9]} 11... Qc7 {[%clk 0:02:38.1]} 12. Be3 {[%clk 0:01:55.4]} 12... Nbd7
{[%clk 0:02:36.8]} 13. Qd2 {[%clk 0:01:53.7]} 13... Ne8 {[%clk 0:02:19.9]} 14.
Bh6 {[%clk 0:01:51.7]} 14... f5 {[%clk 0:02:14.1]} 15. Bxg7 {[%clk 0:01:49.9]}
15... Kxg7 {[%clk 0:02:08.8]} 16. f4 {[%clk 0:01:43.4]} 16... Qd8 {[%clk
0:02:02.4]} 17. exf5 {[%clk 0:01:34.9]} 17... Bxf5 {[%clk 0:02:01.2]} 18. g4
{[%clk 0:01:33.5]} 18... Be6 {[%clk 0:02:00.8]} 19. Ne4 {[%clk 0:01:22.7]} 19...
d5 {[%clk 0:01:45.6]} 20. cxd5 {[%clk 0:01:20.5]} 20... Bxd5 {[%clk 0:01:39.7]}
21. N2g3 {[%clk 0:01:15.8]} 21... Qc7 {[%clk 0:01:17.4]} 22. f5 {[%clk
0:01:06.8]} 22... Nef6 {[%clk 0:01:08.5]} 23. fxg6 {[%clk 0:00:56.7]} 23... hxg6
{[%clk 0:01:07.1]} 24. Rac1 {[%clk 0:00:50]} 24... Qb6 {[%clk 0:00:56.5]} 25.
Qc2 {[%clk 0:00:30.7]} 25... Qd4 {[%clk 0:00:48.1]} 26. Nxf6 {[%clk 0:00:27.4]}
26... Rxf6 {[%clk 0:00:41.2]} 27. Rxf6 {[%clk 0:00:26.8]} 27... Nxf6 {[%clk
0:00:40.6]} 28. Bxd5 {[%clk 0:00:20.5]} 28... Nxd5 {[%clk 0:00:37]} 29. Ne4
{[%clk 0:00:18.2]} 29... Rf8 {[%clk 0:00:32.3]} 30. Kh1 {[%clk 0:00:14.9]} 30...
Nf4 {[%clk 0:00:29.9]} 31. Nc5 {[%clk 0:00:10.4]} 31... b6 {[%clk 0:00:25.9]}
32. Nxa6 {[%clk 0:00:09.7]} 32... Qxd3 {[%clk 0:00:20.6]} 33. Qxd3 {[%clk
0:00:08.8]} 33... Nxd3 {[%clk 0:00:20]} 34. Rd1 {[%clk 0:00:08.6]} 34... Nxb2
{[%clk 0:00:18.1]} 35. Rd2 {[%clk 0:00:09.2]} 35... Nxa4 {[%clk 0:00:17.2]} 36.
Nc7 {[%clk 0:00:09.9]} 36... Nc5 {[%clk 0:00:14.6]} 37. Kg2 {[%clk 0:00:04.8]}
37... Rf7 {[%clk 0:00:12.9]} 0-1